fUST/lending_fUST_20250127
["ID","MTS","AMOUNT","RATE_DAILY","PERIOD"]
[350529717,1737947458128,-500.0,0.00018334,2]
[350529718,1737947458137,-500.0,0.00018334,2]
[350529719,1737947458146,-159.19931305,0.00018334,2]
[350529720,1737947458155,-500.0,0.00018334,2]
[350529721,1737947458164,-560.04,0.00018334,2]
[350529722,1737947458174,-500.0,0.00018334,2]
[350529723,1737947458183,-477.86313217,0.00018334,2]
[350529724,1737947458193,-500.0,0.00018334,2]
[350529725,1737947458201,-500.0,0.00018334,2]
[350529726,1737947458211,-500.0,0.00018334,2]
[350529727,1737947458220,-500.0,0.00018334,2]
[350529728,1737947458229,-500.0,0.00018334,2]
[350529729,1737947458238,-500.0,0.00018334,2]
[350529730,1737947458248,-500.0,0.00018334,2]
[350529731,1737947458257,-500.0,0.00018334,2]
[350529732,1737947458266,-500.0,0.00018334,2]
[350529733,1737947458275,-500.0,0.00018334,2]
[350529734,1737947458284,-500.0,0.00018334,2]
[350529735,1737947458293,-500.0,0.00018334,2]
[350529736,1737947458394,-500.0,0.00018334,2]
[350529737,1737947458405,-500.0,0.00018334,2]
[350529738,1737947458414,-500.0,0.00018334,2]
[350529739,1737947458423,-500.0,0.00018334,2]
[350529740,1737947458433,-500.0,0.00018334,2]
[350529741,1737947458443,-500.0,0.00018334,2]
[350529742,1737947458452,-500.0,0.00018334,2]
[350529743,1737947458462,-500.0,0.00018334,2]
[350529744,1737947458471,-500.0,0.00018334,2]
[350529745,1737947458480,-500.0,0.00018334,2]
[350529746,1737947458489,-500.0,0.00018334,2]
[350529747,1737947458499,-500.0,0.00018334,2]
[350529748,1737947458508,-151.0,0.00018334,2]
[350529749,1737947458518,-500.0,0.00018334,2]
[350529750,1737947458527,-151.0,0.00018334,2]
[350529751,1737947458538,-1577.030486,0.00018334,2]
[350529752,1737947458548,-151.0,0.00018334,2]
[350529753,1737947458557,-1577.030486,0.00018334,2]
[350529754,1737947458567,-200.505699,0.00018334,2]
[350529755,1737947458576,-200.505699,0.00018334,2]
[350529756,1737947458586,-265.51691,0.00018334,2]
[350529757,1737947458596,-456.933678,0.00018334,2]
[350529758,1737947458606,-456.933678,0.00018334,2]
[350529759,1737947458615,-238.679765,0.00018334,2]
[350529760,1737947458625,-584.118048,0.00018334,2]
[350529761,1737947458635,-238.679765,0.00018334,2]
[350529762,1737947458645,-584.118048,0.00018334,2]
[350529763,1737947458658,-151.0,0.00018334,2]
[350529764,1737947458668,-151.0,0.00018334,2]
[350529765,1737947458677,-180.42412523,0.00018335,2]
[350529766,1737947458688,-500.0,0.00018335,2]
[350529767,1737947458697,-508.73545142,0.00018335,2]
[350529768,1737947458707,-500.0,0.00018335,2]
[350529769,1737947458716,-500.0,0.00018335,2]
[350529770,1737947458725,-500.0,0.00018335,2]
[350529771,1737947458734,-500.0,0.00018335,2]
[350529772,1737947458744,-571.94341585,0.00018335,2]
[350529773,1737947458753,-500.0,0.00018335,2]
[350529774,1737947458762,-500.0,0.00018335,2]
[350529775,1737947458771,-500.0,0.00018335,2]
[350529776,1737947458780,-501.41491003,0.00018335,2]
[350529777,1737947458789,-500.0,0.00018335,2]
[350529778,1737947458799,-500.0,0.00018335,2]
[350529779,1737947458808,-500.0,0.00018335,2]
[350529780,1737947458818,-500.0,0.00018335,2]
[350529781,1737947458827,-500.0,0.00018335,2]
[350529782,1737947458837,-500.0,0.00018335,2]
[350529783,1737947458846,-500.0,0.00018335,2]
[350529784,1737947458856,-370.04266253,0.00018335,2]
[350529785,1737947458867,-500.0,0.00018335,2]
[350529786,1737947458877,-500.0,0.00018335,2]
[350529787,1737947458888,-500.0,0.00018335,2]
[350529788,1737947458899,-500.0,0.00018335,2]
[350529789,1737947458911,-500.0,0.00018335,2]
[350529790,1737947458920,-500.0,0.00018335,2]
[350529791,1737947458929,-500.0,0.00018335,2]
[350529792,1737947458939,-500.0,0.00018335,2]
[350529793,1737947458948,-501.13380318,0.00018335,2]
[350529794,1737947458957,-500.0,0.00018335,2]
[350529795,1737947458967,-500.0,0.00018335,2]
[350529796,1737947458976,-560.35296079,0.00018335,2]
[350529797,1737947458985,-500.0,0.00018335,2]
[350529798,1737947458994,-500.0,0.00018335,2]
[350529799,1737947459003,-500.0,0.00018335,2]
[350529800,1737947459012,-500.0,0.00018335,2]
[350529801,1737947459021,-500.0,0.00018335,2]
[350529802,1737947459030,-500.0,0.00018335,2]
[350529803,1737947459043,-402.65746504,0.00018335,2]
[350529804,1737947459052,-500.0,0.00018335,2]
[350529805,1737947459061,-500.0,0.00018335,2]
[350529806,1737947459071,-500.0,0.00018335,2]
[350529807,1737947459081,-500.0,0.00018335,2]
[350529808,1737947459090,-508.69313508,0.00018335,2]
[350529809,1737947459100,-500.0,0.00018335,2]
[350529810,1737947459109,-500.0,0.00018335,2]
[350529811,1737947459119,-502.13956518,0.00018335,2]
[350529812,1737947459128,-503.46709409,0.00018335,2]
[350529813,1737947459137,-500.0,0.00018335,2]
[350529814,1737947459146,-496.91104365,0.00018335,2]
[350529815,1737947459155,-500.0,0.00018335,2]
[350529816,1737947459164,-500.0,0.00018335,2]
[350529817,1737947459174,-503.49773745,0.00018335,2]
[350529818,1737947459183,-500.0,0.00018335,2]
[350529819,1737947459192,-500.0,0.00018335,2]
[350529820,1737947459201,-500.0,0.00018335,2]
[350529821,1737947459210,-500.0,0.00018335,2]
[350529822,1737947459219,-500.0,0.00018335,2]
[350529823,1737947459228,-500.0,0.00018335,2]
[350529824,1737947459237,-500.0,0.00018335,2]
[350529825,1737947459246,-500.0,0.00018335,2]
[350529826,1737947459256,-500.0,0.00018335,2]
[350529827,1737947459265,-500.0,0.00018335,2]
[350529828,1737947459275,-500.0,0.00018335,2]
[350529829,1737947459285,-500.0,0.00018335,2]
[350529830,1737947459294,-500.0,0.00018335,2]
[350529831,1737947459303,-178.5799104,0.00018335,2]
[350529832,1737947459311,-500.0,0.00018335,2]
[350529833,1737947459321,-151.0,0.00018335,2]
[350529834,1737947459330,-500.0,0.00018335,2]
[350529835,1737947459339,-151.0,0.00018335,2]
[350529836,1737947459347,-500.0,0.00018335,2]
[350529837,1737947459357,-151.0,0.00018335,2]
[350529838,1737947459366,-500.0,0.00018335,2]
[350529839,1737947459376,-500.0,0.00018335,2]
[350529840,1737947459385,-151.0,0.00018335,2]
[350529841,1737947459394,-151.0,0.00018335,2]
[350529842,1737947459403,-154.59356,0.00018335,2]
[350529843,1737947459412,-180.456614,0.00018335,2]
[350529844,1737947459421,-180.456614,0.00018335,2]
[350529845,1737947459430,-151.0,0.00018335,2]
[350529846,1737947459439,-298.85177,0.00018335,2]
[350529847,1737947459448,-151.0,0.00018335,2]
[350529848,1737947459457,-516.814095,0.00018335,2]
[350529849,1737947459466,-516.814095,0.00018335,2]
[350529850,1737947459475,-1032.570398,0.00018335,2]
[350529851,1737947459485,-1032.570398,0.00018335,2]
[350529852,1737947459494,-512.0999841,0.00018336,2]
[350529853,1737947459504,-502.07514818,0.00018336,2]
[350529854,1737947459513,-622.7841006,0.00018336,2]
[350529855,1737947459522,-500.93936004,0.00018336,2]
[350529856,1737947459531,-501.47841387,0.00018336,2]
[350529857,1737947459540,-500.0,0.00018336,2]
[350529858,1737947459549,-500.0,0.00018336,2]
[350529859,1737947459558,-501.49813326,0.00018336,2]
[350529860,1737947459568,-500.0,0.00018336,2]
[350529861,1737947459577,-553.11222763,0.00018336,2]
[350529862,1737947459587,-501.13513227,0.00018336,2]
[350529863,1737947459597,-558.25813322,0.00018336,2]
[350529864,1737947459606,-634.88694759,0.00018348,2]
[350529865,1737947459615,-500.0,0.00018354,2]
[350529866,1737947459625,-2180.64,0.00018354,2]
[350529867,1737947459635,-500.0,0.00018354,2]
[350529868,1737947459644,-3924.75,0.00018354,2]
[350529869,1737947459655,-1329.05,0.00018354,2]
[350529870,1737947459664,-1736.73,0.00018354,2]
[350529871,1737947459674,-797.26,0.00018354,2]
[350529872,1737947459684,-493.78,0.00018354,2]
[350529873,1737947459693,-661.82,0.00018354,2]
[350529874,1737947459702,-611.94634218,0.00018354,2]
[350529875,1737947459711,-500.0,0.00018354,2]
[350529876,1737947459721,-981.88,0.00018354,2]
[350529877,1737947459730,-590.92,0.00018354,2]
[350529878,1737947459740,-1770.45,0.00018354,2]
[350529879,1737947459749,-715.93,0.00018354,2]
[350529880,1737947459761,-1597.97,0.00018354,2]
[350529881,1737947459770,-916.29,0.00018354,2]
[350529882,1737947459779,-3038.11,0.00018354,2]
[350529883,1737947459788,-1034.33,0.00018354,2]
[350529884,1737947459798,-522.95727509,0.00018354,2]
[350529885,1737947459807,-595.18,0.00018354,2]
[350529886,1737947459816,-1644.73,0.00018354,2]
[350529887,1737947459825,-596.77883216,0.00018355,2]
[350529888,1737947459834,-978.78,0.00018355,2]
[350529889,1737947459843,-743.63,0.00018355,2]
[350529890,1737947459853,-581.3,0.00018355,2]
[350529891,1737947459862,-500.0,0.00018355,2]
[350529892,1737947459871,-499.68,0.00018355,2]
[350529893,1737947459881,-4061.49,0.00018355,2]
[350529894,1737947459891,-500.0,0.00018355,2]
[350529895,1737947459900,-591.07,0.00018355,2]
[350529896,1737947459911,-500.0,0.00018355,2]
[350529897,1737947459997,-3976.97,0.00018355,2]
[350529898,1737947460007,-1143.83,0.00018355,2]
[350529899,1737947460017,-500.0,0.00018355,2]
[350529900,1737947460027,-500.0,0.00018355,2]
[350529901,1737947460036,-151.0,0.00018359,2]
[350529902,1737947460049,-151.0,0.00018359,2]
[350529903,1737947460059,-13731.72,0.00018359,2]
[350529904,1737947460069,-1577.030486,0.00018359,2]
[350529905,1737947460079,-865.59,0.00018359,2]
[350529906,1737947460089,-1577.030486,0.00018359,2]
[350529907,1737947460099,-565.74,0.00018359,2]
[350529908,1737947460108,-4769.83,0.00018359,2]
[350529909,1737947460121,-500.0,0.00018359,2]
[350529910,1737947460131,-151.0,0.00018359,2]
[350529911,1737947460141,-151.0,0.00018359,2]
[350529912,1737947460151,-500.0,0.00018373,2]
[350529913,1737947460162,-500.0,0.00018471,2]
[350529914,1737947460172,-262.22498627,0.00018471,2]
[350529915,1737947460182,-500.0,0.00018471,2]
[350529916,1737947460191,-315.40494475,0.00018471,2]
[350529917,1737947460440,-184.59505525,0.00018471,2]
[350529918,1737947460450,-560.04,0.00018471,2]
[350529919,1737947460459,-500.0,0.00018471,2]
[350529920,1737947460469,-500.0,0.00018471,2]
[350529921,1737947460479,-500.0,0.00018471,2]
[350529922,1737947460488,-500.0,0.00018471,2]
[350529923,1737947460498,-500.0,0.00018471,2]
[350529924,1737947460507,-500.0,0.00018471,2]
[350529925,1737947460517,-500.0,0.00018471,2]
[350529926,1737947460527,-500.0,0.00018471,2]
[350529927,1737947460536,-151.0,0.00018471,2]
[350529928,1737947460545,-151.0,0.00018471,2]
[350529929,1737947460555,-500.0,0.00018471,2]
[350529930,1737947460564,-151.0,0.00018471,2]
[350529931,1737947460573,-500.0,0.00018471,2]
[350529932,1737947460582,-500.0,0.00018471,2]
[350529933,1737947460591,-500.0,0.00018471,2]
[350529934,1737947460601,-500.0,0.00018471,2]
[350529935,1737947460610,-500.0,0.00018471,2]
[350529936,1737947460619,-151.0,0.00018471,2]
[350529937,1737947460629,-500.0,0.00018471,2]
[350529938,1737947460638,-500.0,0.00018471,2]
[350529939,1737947460648,-500.0,0.00018471,2]
[350529940,1737947460659,-500.0,0.00018471,2]
[350529941,1737947460668,-500.0,0.00018471,2]
[350529942,1737947460677,-500.0,0.00018471,2]
[350529943,1737947460687,-500.0,0.00018471,2]
[350529944,1737947460696,-500.0,0.00018471,2]
[350529945,1737947460705,-500.0,0.00018471,2]
[350529946,1737947460715,-500.0,0.00018471,2]
[350529947,1737947460724,-617.90339756,0.00018471,2]
[350529948,1737947460733,-500.0,0.00018471,2]
[350529949,1737947460742,-200.505699,0.00018471,2]
[350529950,1737947460751,-200.505699,0.00018471,2]
[350529951,1737947460760,-456.933678,0.00018471,2]
[350529952,1737947460769,-456.933678,0.00018471,2]
[350529953,1737947460778,-238.679765,0.00018471,2]
[350529954,1737947460787,-584.118048,0.00018471,2]
[350529955,1737947460796,-238.679765,0.00018471,2]
[350529956,1737947460805,-584.118048,0.00018471,2]
[350529957,1737947460814,-500.0,0.00018472,2]
[350529958,1737947460823,-500.0,0.00018472,2]
[350529959,1737947460832,-500.0,0.00018472,2]
[350529960,1737947460841,-500.0,0.00018472,2]
[350529961,1737947460850,-500.0,0.00018472,2]
[350529962,1737947460859,-500.0,0.00018472,2]
[350529963,1737947460868,-500.0,0.00018472,2]
[350529964,1737947460877,-500.0,0.00018472,2]
[350529965,1737947460886,-500.0,0.00018472,2]
[350529966,1737947460896,-500.0,0.00018472,2]
[350529967,1737947460906,-500.0,0.00018472,2]
[350529968,1737947460915,-500.0,0.00018472,2]
[350529969,1737947460924,-500.0,0.00018472,2]
[350529970,1737947460933,-500.0,0.00018472,2]
[350529971,1737947460943,-500.0,0.00018472,2]
[350529972,1737947460952,-500.0,0.00018472,2]
[350529973,1737947460961,-500.0,0.00018472,2]
[350529974,1737947460970,-500.0,0.00018472,2]
[350529975,1737947460979,-500.0,0.00018472,2]
[350529976,1737947460988,-501.0893964,0.00018472,2]
[350529977,1737947460997,-501.61984182,0.00018472,2]
[350529978,1737947461006,-501.63784963,0.00018472,2]
[350529979,1737947461015,-505.22989803,0.00018472,2]
[350529980,1737947461024,-500.0,0.00018472,2]
[350529981,1737947461033,-331.75,0.00018472,2]
[350529982,1737947461045,-500.0,0.00018472,2]
[350529983,1737947461054,-500.0,0.00018472,2]
[350529984,1737947461063,-500.0,0.00018472,2]
[350529985,1737947461072,-500.0,0.00018472,2]
[350529986,1737947461082,-500.0,0.00018472,2]
[350529987,1737947461092,-500.0,0.00018472,2]
[350529988,1737947461101,-500.0,0.00018472,2]
[350529989,1737947461110,-500.0,0.00018472,2]
[350529990,1737947461120,-500.0,0.00018472,2]
[350529991,1737947461129,-511.4712404,0.00018472,2]
[350529992,1737947461137,-398.58973083,0.00018472,2]
[350529993,1737947461146,-500.0,0.00018472,2]
[350529994,1737947461155,-500.0,0.00018472,2]
[350529995,1737947461164,-500.0,0.00018472,2]
[350529996,1737947461173,-500.0,0.00018472,2]
[350529997,1737947461183,-500.0,0.00018472,2]
[350529998,1737947461192,-500.0,0.00018472,2]
[350529999,1737947461200,-500.0,0.00018472,2]
[350530000,1737947461210,-152.390082,0.00018472,2]
[350530001,1737947461219,-482.965514,0.00018472,2]
[350530002,1737947461229,-508.54233772,0.00018472,2]
[350530003,1737947461237,-482.965514,0.00018472,2]
[350530004,1737947461247,-500.0,0.00018472,2]
[350530005,1737947461256,-500.0,0.00018472,2]
[350530006,1737947461265,-500.0,0.00018472,2]
[350530007,1737947461275,-500.0,0.00018472,2]
[350530008,1737947461284,-180.456614,0.00018472,2]
[350530009,1737947461373,-180.456614,0.00018472,2]
[350530010,1737947461382,-151.0,0.00018472,2]
[350530011,1737947461391,-298.85177,0.00018472,2]
[350530012,1737947461401,-298.85177,0.00018472,2]
[350530013,1737947461412,-166.404852,0.00018472,2]
[350530014,1737947461421,-516.814095,0.00018472,2]
[350530015,1737947461430,-516.814095,0.00018472,2]
[350530016,1737947461440,-500.0,0.00018473,2]
[350530017,1737947461450,-500.0,0.00018473,2]
[350530018,1737947461459,-228.23369717,0.00018473,2]
[350530019,1737947461468,-1032.570398,0.00018473,2]
[350530020,1737947461478,-1032.570398,0.00018473,2]
[350530021,1737947461487,-173.5642137,0.00018474,2]
[350530022,1737947461496,-176.579,0.00018481,2]
[350530023,1737947461505,-500.0,0.00018491,2]
[350530024,1737947461515,-2180.64,0.00018491,2]
[350530025,1737947461524,-500.0,0.00018491,2]
[350530026,1737947461533,-3924.75,0.00018491,2]
[350530027,1737947461542,-1329.05,0.00018491,2]
[350530028,1737947461552,-1736.73,0.00018491,2]
[350530029,1737947461561,-797.26,0.00018491,2]
[350530030,1737947461570,-661.82,0.00018491,2]
[350530031,1737947461579,-515.4889895,0.00018491,2]
[350530032,1737947461589,-981.88,0.00018491,2]
[350530033,1737947461598,-590.92,0.00018491,2]
[350530034,1737947461607,-1770.45,0.00018491,2]
[350530035,1737947461618,-715.93,0.00018491,2]
[350530036,1737947461627,-1597.97,0.00018491,2]
[350530037,1737947461636,-916.29,0.00018491,2]
[350530038,1737947461646,-3038.11,0.00018491,2]
[350530039,1737947461656,-1034.33,0.00018491,2]
[350530040,1737947461666,-595.18,0.00018491,2]
[350530041,1737947461676,-1644.73,0.00018491,2]
[350530042,1737947461686,-978.78,0.00018492,2]
[350530043,1737947461695,-743.63,0.00018492,2]
[350530044,1737947461704,-581.3,0.00018492,2]
[350530045,1737947461713,-500.0,0.00018492,2]
[350530046,1737947461722,-4061.49,0.00018492,2]
[350530047,1737947461731,-500.0,0.00018492,2]
[350530048,1737947461741,-591.07,0.00018492,2]
[350530049,1737947461750,-500.0,0.00018492,2]
[350530050,1737947461759,-3976.97,0.00018492,2]
[350530051,1737947461768,-1143.83,0.00018492,2]
[350530052,1737947461777,-500.0,0.00018492,2]
[350530053,1737947461786,-500.0,0.00018492,2]
[350530054,1737947461795,-160.0,0.00018495,2]
[350530055,1737947461804,-151.0,0.00018496,2]
[350530056,1737947461813,-151.0,0.00018496,2]
[350530057,1737947461823,-151.0,0.00018496,2]
[350530058,1737947461832,-151.0,0.00018496,2]
[350530059,1737947461841,-151.0,0.00018496,2]
[350530060,1737947461850,-13731.72,0.00018496,2]
[350530061,1737947461860,-1577.030486,0.00018496,2]
[350530062,1737947461869,-865.59,0.00018496,2]
[350530063,1737947461878,-1577.030486,0.00018496,2]
[350530064,1737947461887,-565.74,0.00018496,2]
[350530065,1737947461896,-4769.83,0.00018496,2]
[350530066,1737947461906,-500.0,0.00018496,2]
[350530067,1737947461915,-634.88694759,0.00018555,2]
[350530068,1737947461925,-152.121905,0.00018607,2]
[350530069,1737947461934,-151.0,0.00018607,2]
[350530070,1737947461943,-151.0,0.00018607,2]
[350530071,1737947461952,-269.108013,0.00018607,2]
[350530072,1737947461961,-160.0,0.00018607,2]
[350530073,1737947461970,-500.0,0.00018608,2]
[350530074,1737947461979,-500.0,0.00018608,2]
[350530075,1737947461988,-500.0,0.00018608,2]
[350530076,1737947461997,-560.04,0.00018608,2]
[350530077,1737947462007,-500.0,0.00018608,2]
[350530078,1737947462016,-500.0,0.00018608,2]
[350530079,1737947462025,-500.0,0.00018608,2]
[350530080,1737947462036,-538.75672649,0.00018608,2]
[350530081,1737947462049,-500.0,0.00018608,2]
[350530082,1737947462058,-500.0,0.00018608,2]
[350530083,1737947462067,-509.70921022,0.00018608,2]
[350530084,1737947462077,-500.0,0.00018608,2]
[350530085,1737947462087,-151.0,0.00018608,2]
[350530086,1737947462096,-228.523966,0.00018608,2]
[350530087,1737947462105,-500.0,0.00018608,2]
[350530088,1737947462114,-151.0,0.00018608,2]
[350530089,1737947462125,-500.0,0.00018608,2]
[350530090,1737947462134,-514.07156024,0.00018608,2]
[350530091,1737947462143,-500.0,0.00018608,2]
[350530092,1737947462152,-500.0,0.00018608,2]
[350530093,1737947462162,-500.0,0.00018608,2]
[350530094,1737947462171,-151.0,0.00018608,2]
[350530095,1737947462179,-500.0,0.00018608,2]
[350530096,1737947462188,-500.0,0.00018608,2]
[350530097,1737947462197,-109.59639387,0.00018608,2]
[350530098,1737947462210,-390.40360613,0.00018608,2]
[350530099,1737947462219,-500.0,0.00018608,2]
[350530100,1737947462228,-500.0,0.00018608,2]
[350530101,1737947462237,-500.0,0.00018608,2]
[350530102,1737947462246,-500.0,0.00018608,2]
[350530103,1737947462255,-500.0,0.00018608,2]
[350530104,1737947462265,-500.0,0.00018608,2]
[350530105,1737947462274,-500.0,0.00018608,2]
[350530106,1737947462283,-160.0,0.00018608,2]
[350530107,1737947462293,-500.0,0.00018608,2]
[350530108,1737947462302,-200.505699,0.00018608,2]
[350530109,1737947462311,-200.505699,0.00018608,2]
[350530110,1737947462320,-456.933678,0.00018608,2]
[350530111,1737947462328,-456.933678,0.00018608,2]
[350530112,1737947462338,-584.118048,0.00018608,2]
[350530113,1737947462347,-238.679765,0.00018608,2]
[350530114,1737947462356,-238.679765,0.00018608,2]
[350530115,1737947462365,-584.118048,0.00018608,2]
[350530116,1737947462376,-151.0,0.00018608,2]
[350530117,1737947462386,-259.940315,0.00018608,2]
[350530118,1737947462395,-500.0,0.00018609,2]
[350530119,1737947462404,-500.0,0.00018609,2]
[350530120,1737947462414,-500.0,0.00018609,2]
[350530121,1737947462423,-500.0,0.00018609,2]
[350530122,1737947462432,-500.0,0.00018609,2]
[350530123,1737947462441,-500.0,0.00018609,2]
[350530124,1737947462451,-500.0,0.00018609,2]
[350530125,1737947462460,-500.0,0.00018609,2]
[350530126,1737947462469,-500.0,0.00018609,2]
[350530127,1737947462478,-500.0,0.00018609,2]
[350530128,1737947462487,-517.49881115,0.00018609,2]
[350530129,1737947462497,-606.65,0.00018609,2]
[350530130,1737947462506,-500.0,0.00018609,2]
[350530131,1737947462515,-500.0,0.00018609,2]
[350530133,1737947462525,-500.0,0.00018609,2]
[350530134,1737947462534,-500.0,0.00018609,2]
[350530135,1737947462543,-500.0,0.00018609,2]
[350530136,1737947462552,-500.0,0.00018609,2]
[350530137,1737947462561,-500.0,0.00018609,2]
[350530138,1737947462571,-556.6,0.00018609,2]
[350530139,1737947462579,-151.0,0.00018609,2]
[350530140,1737947462588,-500.0,0.00018609,2]
[350530141,1737947462598,-151.0,0.00018609,2]
[350530142,1737947462607,-500.0,0.00018609,2]
[350530143,1737947462615,-500.0,0.00018609,2]
[350530144,1737947462625,-380.61027314,0.00018609,2]
[350530145,1737947462634,-500.0,0.00018609,2]
[350530146,1737947462714,-151.0,0.00018609,2]
[350530147,1737947462724,-500.0,0.00018609,2]
[350530148,1737947462733,-500.0,0.00018609,2]
[350530149,1737947462741,-5.29381208,0.00018609,2]
[350530150,1737947462753,-494.70618792,0.00018609,2]
[350530151,1737947462763,-484.04776483,0.00018609,2]
[350530152,1737947462775,-15.95223517,0.00018609,2]
[350530153,1737947462784,-500.0,0.00018609,2]
[350530154,1737947462793,-500.0,0.00018609,2]
[350530155,1737947462803,-482.965514,0.00018609,2]
[350530156,1737947462812,-482.965514,0.00018609,2]
[350530157,1737947462821,-257.22817801,0.00018609,2]
[350530158,1737947462831,-250.40386282,0.00018609,2]
[350530159,1737947462842,-260.75027793,0.00018609,2]
[350530160,1737947462851,-507.93344506,0.00018609,2]
[350530161,1737947462861,-4.89063021,0.00018609,2]
[350530162,1737947462873,-413.300005,0.00018609,2]
[350530163,1737947462884,-81.80936479,0.00018609,2]
[350530164,1737947462894,-180.456614,0.00018609,2]
[350530165,1737947462903,-180.456614,0.00018609,2]
[350530166,1737947462912,-132.96490481,0.00018609,2]
[350530167,1737947462924,-18.03509519,0.00018609,2]
[350530168,1737947462933,-298.85177,0.00018609,2]
[350530169,1737947462942,-298.85177,0.00018609,2]
[350530170,1737947462951,-1032.570398,0.00018609,2]
[350530171,1737947462961,-1032.570398,0.00018609,2]
[350530172,1737947462969,-3559.74667437,0.00018628,5]
[350530173,1737947462978,-500.0,0.00018628,2]
[350530174,1737947462987,-1503.00465123,0.00018628,2]
[350530175,1737947463328,-475.38842875,0.00016573,2]
[350530176,1737947463340,-24.61157125,0.00016573,2]
[350530177,1737947463350,-313.80332724,0.00016574,2]
[350530178,1737947463360,-500.0,0.00016574,2]
[350530179,1737947463370,-500.0,0.00016574,2]
[350530180,1737947463381,-500.0,0.0001671,2]
[350530181,1737947463391,-500.0,0.00016711,2]
[350530182,1737947463401,-500.0,0.00016711,2]
[350530183,1737947463411,-500.0,0.00016847,2]
[350530184,1737947463422,-500.0,0.00016848,2]
[350530185,1737947463432,-500.0,0.00016848,2]
[350530186,1737947463443,-500.0,0.00016984,2]
[350530187,1737947463454,-131.43169031,0.00016985,2]
[350530188,1737947463466,-266.69830969,0.00016985,2]
[350530189,1737947463476,-280.80471416,0.00016985,2]
[350530190,1737947463486,-500.0,0.00017121,2]
[350530191,1737947463496,-500.0,0.00017258,2]
[350530192,1737947463505,-500.0,0.00017395,2]
[350530193,1737947463515,-151.0,0.00017396,2]
[350530194,1737947463525,-500.0,0.00017532,2]
[350530195,1737947463535,-505.70535045,0.00017669,2]
[350530196,1737947463545,-677.63534877,0.00018628,2]
[350530197,1737947463555,-500.0,0.00018628,2]
[350530198,1737947463565,-3924.75,0.00018628,2]
[350530199,1737947463575,-1329.05,0.00018628,2]
[350530200,1737947463585,-1736.73,0.00018628,2]
[350530201,1737947463594,-797.26,0.00018628,2]
[350530202,1737947463604,-661.82,0.00018628,2]
[350530203,1737947463615,-981.88,0.00018628,2]
[350530204,1737947463625,-590.92,0.00018628,2]
[350530205,1737947463635,-1770.45,0.00018628,2]
[350530206,1737947463645,-715.93,0.00018628,2]
[350530207,1737947463654,-1597.97,0.00018628,2]
[350530208,1737947463664,-916.29,0.00018628,2]
[350530209,1737947463675,-795.10027693,0.00018628,2]
[350530210,1737947463687,-2243.00972307,0.00018628,2]
[350530211,1737947463696,-1034.33,0.00018628,2]
[350530212,1737947463706,-595.18,0.00018628,2]
[350530213,1737947463716,-1644.73,0.00018628,2]
[350530214,1737947463726,-978.78,0.00018629,2]
[350530215,1737947463739,-743.63,0.00018629,2]
[350530216,1737947463749,-581.3,0.00018629,2]
[350530217,1737947463759,-516.814095,0.00018629,2]